Cogmind - Beta 16 @@@ ROGUE MODE // 2026.02.07 @ 21:25:37 Player: robotix Result: Destroyed by H-55 Commando with Assault Rifle Performance ------------- Evolutions (2) 1000 Regions Visited (6) 1200 Robots Destroyed (108) 540 Value Destroyed (3328) 3328 Prototype IDs (3) 60 Alien Tech Used (0) 0 Bonus (1583) 1583 TOTAL SCORE: 7711 Bonus ------- High Alert Combat Kills 402 Follower Combat Kills 281 Entered Garrisons 400 Used RIF Installer 500 Cogmind --------- Core Integrity 0/550 Matter 97/300 Energy 93/100 System Corruption 5% Temperature Cool (0) Movement Core (50) Location -8/Garrison Parts ------- > --- POWER (1) -------- (None) > --- PROPULSION (4) --- (None) > --- UTILITY (4) ------ Visual Processing Unit Relay Coupler [Sentry] (3) > --- WEAPON (2) ------- Datajack > --- INVENTORY (5) ---- Light Nuclear Core Combat Airjet Launcher Guidance Computer Relay Coupler [Cutter] (21) Relay Coupler [Demolisher] (23) Peak State ------------ > --- POWER ------------ Nuclear Core > --- PROPULSION ------- Aluminum Leg VSS Leg Improved Titanium Leg Flexi-carbon Leg > --- UTILITY ---------- Medium Storage Unit Visual Processing Unit Layered Light Armor Plating Relay Coupler [NC] > --- WEAPON ----------- Minigun Gauss Rifle > --- INVENTORY -------- Combat Airjet Launcher Guidance Computer Layered Light Armor Plating Shock Absorption System Relay Coupler [Grunt] Relay Coupler [Sentry] Relay Coupler [Demolisher] Mini Grenade Launcher Datajack Maul [Rating: 34] Favorites ----------- Power Ion Engine Engine Ion Engine Power Core Nuclear Core Propulsion Aluminum Leg Leg Aluminum Leg Hover Unit Combat Airjet Utility Medium Storage Unit Device Shock Absorption System Storage Medium Storage Unit Processor Visual Processing Unit Hackware Relay Coupler [NC] Protection Layered Light Armor Plating Weapon Mini Grenade Launcher Energy Gun EM Pulse Gun Ballistic Gun Gauss Rifle Ballistic Cannon Assault Cannon Launcher Mini Grenade Launcher Impact Weapon Maul Special Melee Weapon Datajack Build | -11 -10 -9 -8 -8 -8 -8 ------- Run | Yrd Mat Mat Mat Gar Mat Gar Slots Evolved 4 | . . 2 2 . . . Power . | . . . . . . . Propulsion 2 | . . 1 1 . . . Utility 2 | . . 1 1 . . . Weapon . | . . . . . . . Parts Attached 57 | 6 5 10 11 11 6 8 Power 11 | 1 . 2 2 3 1 2 Engine 7 | 1 . 2 2 2 . . Core 4 | . . . . 1 1 2 Reactor . | . . . . . . . Propulsion 19 | 2 . 3 4 3 4 3 Treads . | . . . . . . . Leg 18 | 2 . 3 4 2 4 3 Wheel . | . . . . . . . Hover 1 | . . . . 1 . . Flight . | . . . . . . . Utility 13 | 1 2 2 3 3 . 2 Device 1 | . . . . . . 1 Storage 3 | 1 2 . . . . . Processor 1 | . . 1 . . . . Hackware 2 | . . . . 1 . 1 Protection 6 | . . 1 3 2 . . Artifact . | . . . . . . . Weapon 14 | 2 3 3 2 2 1 1 Energy Gun 4 | 2 . 1 1 . . . Energy Cannon . | . . . . . . . Ballistic Gun 2 | . . . . 1 1 . Ballistic Cannon 1 | . . . 1 . . . Launcher 5 | . 3 1 . . . 1 Special Weapon . | . . . . . . . Impact Weapon 1 | . . 1 . . . . Slashing Weapon . | . . . . . . . Piercing Weapon . | . . . . . . . Special Melee Weapon 1 | . . . . 1 . . Unidentified Prototypes 1 | . . . 1 . . . Parts Lost 32 | . 1 5 2 8 1 15 Power 7 | . . 2 1 2 . 2 Propulsion 10 | . . 1 . 4 1 4 Utility 8 | . . 1 . 2 . 5 Weapon 7 | . 1 1 1 . . 4 Highest Loss Streak 11 | . 1 2 2 3 1 11 To Critical Strikes 1 | . . . . . . 1 Average Backups 9 | 1 7 9 9 9 10 9 Power . | . . . . . . . Propulsion 1 | . 2 2 . . 1 . Utility 3 | . . 1 4 4 6 5 Weapon 3 | . 3 4 4 3 2 1 Tool/Special . | . . . . . . . Unused Backups 15 | . . 3 3 5 . 4 Power . | . . . . . . . Propulsion 2 | . . 2 . . . . Utility 11 | . . . 3 4 . 4 Weapon 2 | . . 1 . 1 . . Tool/Special . | . . . . . . . Average Slot Usage (%) 87 | . 93 92 94 76 91 88 Engine 5 | . 14 10 8 2 . . Core 2 | . . . . 3 9 6 Leg 26 | . 28 32 36 17 28 29 Storage 16 | . 22 22 18 15 9 8 Processor 6 | . . 1 9 9 9 9 Hackware 1 | . . . . . 9 5 Protection 7 | . . 4 6 10 9 9 Energy Gun 3 | . 17 5 . . . . Ballistic Gun 3 | . . . . 3 15 4 Launcher 7 | . 9 12 5 6 . 7 Impact Weapon 5 | . . 3 9 7 . 3 Peak Build Rating 34 | 6 9 13 31 30 34 29 Average Rating 19 | 3 8 10 25 23 30 24 On Entrance 16 | . 6 9 13 29 27 28 Avg Prop Armor Cover (%) 5 | . . . 5 5 . 4 Naked Turns . | . . . . . . . Heaviest Build 32 | 14 20 26 27 32 28 27 Greatest Support 70 | 20 20 30 70 50 62 50 Greatest Overweight (x) 2 | . . . . 2 . 1 Average Overweight (x) . | . . . . . . . Largest Inventory Capacity 10 | 8 10 10 10 10 10 10 Average Capacity 9 | 6 9 10 10 10 10 9 Most Carried 10 | 5 10 10 10 10 10 10 Average Carried 9 | 1 7 9 9 9 10 9 Final Capacity 10 | 8 10 10 10 10 10 5 Final Carried 10 | . 10 10 10 10 10 5 Class Distribution -------------------- 72% | Mutant 18% | Scavenger-Mutant 8% | Bothacker-Mutant Dominant Class ---------------- Mutant | -10/Materials Mutant | -9/Materials Mutant | -8/Materials Mutant | -8/Garrison Bothacker-Mutant | -8/Materials Scavenger-Mutant | -8/Garrison Resources | -11 -10 -9 -8 -8 -8 -8 ----------- Run | Yrd Mat Mat Mat Gar Mat Gar Matter Collected 2472 | 172 175 495 283 567 474 306 Remotely . | . . . . . . . Salvage Created 3062 | . 241 991 342 347 756 385 Parts 171 | . 31 54 5 21 42 18 Haulers Intercepted 4 | . 1 3 . . . . Recyclers Shooed 7 | . . 4 . . 3 . Parts Field Recycled . | . . . . . . . Retrieved Matter . | . . . . . . . Parts Self-Destructed . | . . . . . . . Prevented . | . . . . . . . Parts Restored . | . . . . . . . Kills | -11 -10 -9 -8 -8 -8 -8 ------- Run | Yrd Mat Mat Mat Gar Mat Gar Combat Hostiles Destroyed 72 | . 7 13 9 19 9 15 Melee 7 | . . . 2 3 . 2 Guns 22 | . 3 5 . 3 9 2 Cannons 1 | . . . 1 . . . AOE 39 | . 4 8 3 13 . 11 Classes Destroyed 15 | . 7 3 3 1 . 1 Worker 4 | . 1 3 . . . . Builder 7 | . 1 3 . . 3 . Hauler 4 | . 1 3 . . . . Recycler 11 | . 1 6 1 . 3 . Mechanic 1 | . . 1 . . . . Operator 3 | . . 2 . . 1 . Watcher 6 | . 1 3 1 . 1 . Swarmer 22 | . 6 4 2 7 . 3 Grunt 28 | . 1 5 4 7 6 5 Brawler 2 | . . . 1 1 . . Duelist 2 | . . . 1 . . 1 Sentry 10 | . . 4 . 3 3 . Specialist 1 | . . . . 1 . . Hunter 2 | . . . 1 . . 1 Programmer 5 | . . . . . . 5 Best Kill Streak 7 | . 4 6 4 4 7 6 Combat Bots Only 6 | . 3 4 4 4 3 6 Max Kills in Single Turn 3 | . 2 3 2 3 1 3 Gunslinging . | . . . . . . . Exploded 3 | . 2 2 2 3 . 3 Melee 1 | . . . 1 1 . 1 Uniques/NPCs Destroyed . | . . . . . . . Combat | -11 -10 -9 -8 -8 -8 -8 -------- Run | Yrd Mat Mat Mat Gar Mat Gar Hostile Shots Fired 460 | . 22 61 62 109 30 176 Missed 142 | . 6 15 19 37 8 57 Hits 318 | . 16 46 43 72 22 119 Melee 10 | . . . 10 . . . Projectile 308 | . 16 46 33 72 22 119 Critical Strikes 14 | . . 3 3 1 1 6 Part Disruptions 1 | . . . . . . 1 Damage Taken 4575 | . 181 744 746 880 323 1701 Core 691 | . 23 112 69 149 30 308 Absorbed by Shields 33 | . . . . . . 33 Regen/Repaired (Parts) 46 | . . 46 . . . . Core Remaining (%) 87 | 100 90 72 . . . . Volleys Fired 266 | . 23 77 20 51 47 48 Largest 2 | . 2 1 1 1 2 2 Hottest 80 | . 80 56 55 30 53 53 Shots Fired 320 | . 27 77 20 51 90 55 Gun 204 | . 19 51 1 9 90 34 Cannon 9 | . . . 9 . . . Launcher 107 | . 8 26 10 42 . 21 Special . | . . . . . . . Kinetic 142 | . . . 9 9 90 34 Thermal 43 | . . 42 1 . . . Explosive 107 | . 8 26 10 42 . 21 Electromagnetic 28 | . 19 9 . . . . Robot Hit Streak 10 | . 2 10 3 8 5 5 Robot Miss Streak 5 | . 3 2 5 2 4 3 Penetration Max 1 | . . . . . 1 . Secondary Targets . | . . . . . . . Shots Hit Robots 204 | . 8 51 23 32 51 39 Core Hits 174 | . 11 54 12 39 25 33 Critical Kills 3 | . . . 1 1 . 1 Critical Parts Destroyed 11 | . . 2 5 1 1 2 Critical Strikes 18 | . . 5 7 2 1 3 Burn 3 | . . 3 . . . . Destroy 1 | . . . . . 1 . Smash 14 | . . 2 7 2 . 3 Melee Attacks 65 | . . 6 23 18 4 14 Impact 52 | . . 6 23 12 . 11 Slashing . | . . . . . . . Piercing . | . . . . . . . Sneak Attacks 7 | . . 2 1 3 1 . Combat Hostiles . | . . . . . . . Follow-up Attacks . | . . . . . . . Damage Inflicted 7889 | . 463 1798 1138 1785 1095 1610 Guns 2280 | . 101 580 . 124 1095 380 Cannons 91 | . . . 91 . . . Explosions 4259 | . 362 967 456 1543 . 931 Melee 1259 | . . 251 591 118 . 299 Ramming . | . . . . . . . Kinetic 1690 | . . . 91 124 1095 380 Thermal 466 | . . 466 . . . . Explosive 4259 | . 362 967 456 1543 . 931 Electromagnetic 215 | . 101 114 . . . . Impact 1259 | . . 251 591 118 . 299 Slashing . | . . . . . . . Piercing . | . . . . . . . Highest Corruption 5 | . 4 . . . . 5 Average Corruption 2 | . 2 . . . . 2 Corruption Purged . | . . . . . . . Corruption Blocked . | . . . . . . . Effects 8 | . 2 . . . . 6 Message Errors 1 | . 1 . . . . . Matter Fused 3 | . . . . . . 3 Heat Flow Errors 2 | . 1 . . . . 1 Energy Discharges 1 | . . . . . . 1 Data Loss (minor) 1 | . . . . . . 1 Overload Shots . | . . . . . . . Overflow Damage 620 | . 72 214 220 25 . 89 Projectiles . | . . . . . . . Explosions 123 | . 72 29 . . . 22 Melee 497 | . . 185 220 25 . 67 Knockbacks 7 | . . 1 5 . . 1 Impact 4 | . . 1 2 . . 1 Kinetic 3 | . . . 3 . . . Secondary . | . . . . . . . Self-Inflicted Damage 301 | . 46 153 . 53 . 49 Shots 9 | . 1 4 . 2 . 2 Rammed . | . . . . . . . Targets Rammed . | . . . . . . . Kicked . | . . . . . . . Crushed . | . . . . . . . Highest Temperature 256 | . 194 256 8 12 54 110 Average Temperature 41 | . 65 58 4 5 20 38 Received Heat Transfer 942 | . . 264 72 207 180 219 Effects 1 | . . 1 . . . . Interference 1 | . . 1 . . . . Siege Activations . | . . . . . . . Martial Activations . | . . . . . . . Shielding Activations . | . . . . . . . Robots Disrupted . | . . . . . . . Combat Hostiles . | . . . . . . . Robots Corrupted 6 | . . 2 4 . . . Combat Hostiles 3 | . . . 3 . . . Parts Fried 9 | . 1 4 3 1 . . Impact Corruptions 20 | . . 7 8 2 . 3 Robots Melted . | . . . . . . . Combat Hostiles . | . . . . . . . Parts Melted 2 | . . 1 . . . 1 Heat Transferred 1406 | . . 1406 . . . . Parts Sabotaged . | . . . . . . . Parts Stolen . | . . . . . . . Parts Stripped . | . . . . . . . Power Chain Reactions . | . . . . . . . Alert | -11 -10 -9 -8 -8 -8 -8 ------- Run | Yrd Mat Mat Mat Gar Mat Gar Maximum Alert Level 3 | . . 1 . 3 2 3 Low Security (%) 47 | 100 100 93 100 5 . . Level 1 6 | . . 6 . 15 . . Level 2 24 | . . . . 26 100 60 Level 3 21 | . . . . 52 . 39 Level 4 . | . . . . . . . Level 5 . | . . . . . . . High Security . | . . . . . . . Max Security . | . . . . . . . Peak Influence 1018 | . 141 261 193 1018 696 759 Initial 495 | . . 33 43 125 495 427 Average 374 | . 91 70 58 657 568 654 Influence Increases 3096 | . 251 659 368 1013 363 442 Destroy 0b10 Robot/C 1620 | . 140 260 180 560 180 300 Destroy 0b10 Robot/NC 185 | . 25 105 10 . 45 . Destroy Leader 280 | . 34 92 52 30 52 20 Allied During Kill 46 | . . . . 46 . . Successful Hack 23 | . . 2 . 21 . . Disable Machine 120 | . . 45 30 15 30 . Anti-Garrison Action 100 | . . . . 100 . . Destroy Structure 497 | . 52 155 51 151 11 77 Partial Spotted 15 | . . . . 15 . . Lose Combat Pursuer 210 | . . . 45 75 45 45 Influence Decreases 2417 | . 170 636 279 188 723 421 Entered New Map 931 | . . 48 61 68 523 231 Time Decay 873 | . 160 355 198 . 160 . Lost Part 320 | . 10 50 20 80 10 150 Lost Ally 110 | . . . . 40 30 40 Purge Threat 183 | . . 183 . . . . Squads Dispatched 10 | . 1 2 4 . 3 . Investigation 1 | . . . 1 . . . Extermination . | . . . . . . . Reinforcement 5 | . 1 2 . . 2 . Assault . | . . . . . . . Garrison 4 | . . . 3 . 1 . Intercept . | . . . . . . . Searches Triggered . | . . . . . . . Construction Impeded 1 | . . . . . 1 . Haulers Reinforced . | . . . . . . . Active Scanning Responses . | . . . . . . . Cargo Convoy Interrupts . | . . . . . . . Stealth | -11 -10 -9 -8 -8 -8 -8 --------- Run | Yrd Mat Mat Mat Gar Mat Gar Distress Signals 4 | . . 2 1 . 1 . Communications Jammed . | . . . . . . . Distress Signals . | . . . . . . . Times Spotted 111 | . 8 24 13 26 17 23 Peak Tracking Total 7 | . 4 4 6 7 5 6 Tactical Retreats 7 | . . . 1 2 2 2 Traps | -11 -10 -9 -8 -8 -8 -8 ------- Run | Yrd Mat Mat Mat Gar Mat Gar Traps Triggered 6 | . 3 . . 2 . 1 Indirectly . | . . . . . . . Trap Hack Attempts . | . . . . . . . Triggered . | . . . . . . . Disarmed . | . . . . . . . Reprogrammed . | . . . . . . . Reused . | . . . . . . . Traps Extracted . | . . . . . . . Installed . | . . . . . . . Triggered . | . . . . . . . Machines | -11 -10 -9 -8 -8 -8 -8 ---------- Run | Yrd Mat Mat Mat Gar Mat Gar Machines Disabled 12 | . 1 3 2 4 2 . Max in Single Turn 2 | . 1 2 1 1 1 . Garrison Relay 2 | . . . . 2 . . Machines Repaired . | . . . . . . . Machines Dismantled . | . . . . . . . Machines Sabotaged . | . . . . . . . Overloaded Fab Kills . | . . . . . . . Hacking | -11 -10 -9 -8 -8 -8 -8 --------- Run | Yrd Mat Mat Mat Gar Mat Gar Machines Accessed 12 | . 2 5 1 2 1 1 Terminals 8 | . 2 3 . 2 . 1 Fabricators . | . . . . . . . Repair Stations 1 | . . 1 . . . . Recycling Units . | . . . . . . . Scanalyzers 1 | . . 1 . . . . Garrison Access 2 | . . . 1 . 1 . Total Hacks 30 | . 8 14 3 2 2 1 Successful 14 | . 2 7 1 2 2 . Failed 16 | . 6 7 2 . . 1 Catastrophic 1 | . . . . . . 1 Database Lockouts . | . . . . . . . Manual . | . . . . . . . Terminals 18 | . 8 7 . 2 . 1 Fabricators . | . . . . . . . Repair Stations 3 | . . 3 . . . . Recycling Units . | . . . . . . . Scanalyzers 4 | . . 4 . . . . Garrison Access 5 | . . . 3 . 2 . Terminal Hacks 6 | . 2 2 . 2 . . Record 1 | . 1 . . . . . Prototype ID Bank 1 | . 1 . . . . . Open Door 1 | . . . . 1 . . Unreport Threat 2 | . . 2 . . . . Garrison Registry 1 | . . . . 1 . . Fabricator Hacks . | . . . . . . . Repair Station Hacks 2 | . . 2 . . . . Scan Component 1 | . . 1 . . . . Repair 1 | . . 1 . . . . Recycling Unit Hacks . | . . . . . . . Scanalyzer 3 | . . 3 . . . . Insert Component 2 | . . 2 . . . . Analyze 1 | . . 1 . . . . Garrison Access Hacks 3 | . . . 1 . 2 . Unlock Access 2 | . . . 1 . 1 . Coupler Status 1 | . . . . . 1 . Unauthorized Hacks . | . . . . . . . Terminals . | . . . . . . . Fabricators . | . . . . . . . Repair Stations . | . . . . . . . Recycling Units . | . . . . . . . Scanalyzers . | . . . . . . . Garrison Access . | . . . . . . . Data Cores Recovered . | . . . . . . . Used . | . . . . . . . Hacking Detections 10 | . 2 5 1 . 1 1 Full Trace Events 3 | . . 2 1 . . . Feedback Events . | . . . . . . . Feedback Blocked . | . . . . . . . Robot Schematics Acquired . | . . . . . . . Robots Built . | . . . . . . . Authchips . | . . . . . . . Time . | . . . . . . . Total Robot Build Rating . | . . . . . . . Part Schematics Acquired 1 | . . 1 . . . . Parts Built . | . . . . . . . Authchips . | . . . . . . . Time . | . . . . . . . Total Part Build Rating . | . . . . . . . Part Studies Acquired . | . . . . . . . Parts Repaired 1 | . . 1 . . . . Time 32 | . . 32 . . . . Parts Recycled . | . . . . . . . Recycled Matter . | . . . . . . . Retrieved Matter . | . . . . . . . Retrieved Components . | . . . . . . . Parts Scanalyzed 2 | . . 2 . . . . Part Schematics Acquired 1 | . . 1 . . . . Parts Damaged 1 | . . 1 . . . . Bothacking | -11 -10 -9 -8 -8 -8 -8 ------------ Run | Yrd Mat Mat Mat Gar Mat Gar Used RIF Installer 1 | . . . . 1 . . Robots Hacked 4 | . . . . . 2 2 Non-combat 2 | . . . . . 2 . Combat 2 | . . . . . . 2 Robot Hacks Applied 4 | . . . . . 2 2 parse_system 1 | . . . . . 1 . streamctrl_high 2 | . . . . . . 2 formatsys_low 1 | . . . . . 1 . Relay Couplers Released 13 | . . . . 10 . 3 Machine Destruction 10 | . . . . 10 . . Programmers 3 | . . . . . . 3 Attached 2 | . . . . 1 . 1 Fabnet Peak Effective % . | . . . . . . . Robots Rewired 3 | . . . . 3 . . Allies Hacked 1 | . . . . . . 1 Hacks Repelled . | . . . . . . . Allies | -11 -10 -9 -8 -8 -8 -8 -------- Run | Yrd Mat Mat Mat Gar Mat Gar Total Allies 6 | . . . . 3 1 2 Largest Group 3 | . . . . 3 2 . Highest-Rated Group 95 | . . . . 95 49 . Highest-Rated Ally 39 | . . . . 39 39 . Total Orders 2 | . . . . . 2 . STAY 1 | . . . . . 1 . FOLLOW 1 | . . . . . 1 . Ally Attacks 62 | . . . . 52 9 1 Total Damage 1161 | . . . . 1048 95 18 Kills 10 | . . . . 9 1 . Allies Corrupted . | . . . . . . . Allies Melted . | . . . . . . . Intel | -11 -10 -9 -8 -8 -8 -8 ------- Run | Yrd Mat Mat Mat Gar Mat Gar Active Infowar (turns) 2533 | . . 124 418 1191 326 474 Optics 2533 | . . 124 418 1191 326 474 Robot Analysis Total . | . . . . . . . Derelict Logs Recovered . | . . . . . . . Drone Launches . | . . . . . . . Drone Recoveries . | . . . . . . . Exploration | -11 -10 -9 -8 -8 -8 -8 ------------- Run | Yrd Mat Mat Mat Gar Mat Gar Turns Passed 3741 | 44 379 909 418 1191 326 474 Spaces Moved 2089 | 39 253 457 219 737 134 250 Core 27 | 20 . . . . . 7 Treads . | . . . . . . . Legs 2031 | 19 253 457 219 735 134 214 Wheels . | . . . . . . . Hover 31 | . . . . 2 . 29 Flight . | . . . . . . . Fastest Speed 50 | 50 120 120 120 110 110 50 Average Speed 123 | 84 120 120 124 132 115 117 Slowest Speed 230 | 120 120 120 127 230 123 190 Overloaded Moves . | . . . . . . . Propulsion Burnouts . | . . . . . . . Robots Hopped . | . . . . . . . Potential Cave-ins . | . . . . . . . Cave-ins Triggered . | . . . . . . . Exploration Rate (%) 30 | 3 46 33 15 69 12 38 Regions Visited 6 Branch Regions . Pre-discovered Areas . | . . . . . . . Known Exits Taken 2 | . . . 1 . 1 . Unknown Exits Taken 3 | 1 1 1 . . . . Scrap Searched . | . . . . . . . Spaces Dug 2 | . . . . 1 . 1 Terrain Destroyed 516 | . 66 170 60 148 2 70 Melee 2 | . . . . 1 . 1 Projectile 3 | . . . 1 . 2 . AOE 511 | . 66 170 59 147 . 69 Terrain Rammed . | . . . . . . . Walls Destroyed . | . . . . . . . Machines Disabled . | . . . . . . . Actions | -11 -10 -9 -8 -8 -8 -8 --------- Run | Yrd Mat Mat Mat Gar Mat Gar Total 2824 | 49 300 730 301 870 220 354 Wait 214 | . 5 158 5 18 26 2 Move 2083 | 38 252 456 219 735 133 250 Hop . | . . . . . . . Pick Up 57 | 5 13 14 7 13 . 5 Fast Attach 12 | 1 . . 5 3 3 . Attach 30 | 5 2 7 2 5 . 9 Detach 3 | . . . 1 1 . 1 Swap 43 | . 4 5 7 10 5 12 Drop 38 | . 1 7 12 10 2 6 Fire 266 | . 23 77 20 51 47 48 Melee 65 | . . 6 23 18 4 14 Ram . | . . . . . . . Kick . | . . . . . . . Crush . | . . . . . . . Escape Stasis 12 | . . . . 5 . 7 Rewire 1 | . . . . 1 . . Trap . | . . . . . . . Miscellaneous . | . . . . . . . Route ------- -11/Scrapyard -10/Materials (discovered 4 exits: *Mat / [*Min x2] / [*Sub]) -9/Materials (discovered 2 exits: *Mat x2) -8/Materials -8/Garrison (discovered 3 exits: *Mat x3) -8/Materials -8/Garrison (discovered 1 exit: [*Fac]) History --------- Turn | Location | Event 14 | -11/Scrapyard | Discovered new exit (range 15) 45 | -11/Scrapyard | Entered Materials 215 | -10/Materials | Discovered new exit (range 6) 252 | -10/Materials | Discovered new exit (range 6) 273 | -10/Materials | Discovered new exit (range 12) 310 | -10/Materials | Build established: Mutant 327 | -10/Materials | Discovered new exit (range 7) 424 | -10/Materials | Entered another Materials area 424 | -9/Materials | Evolved 2 slots: Propulsion x1, Utility x1 708 | -9/Materials | Repaired Mni. Grenade Launcher 1033 | -9/Materials | Discovered new exit (range 8) 1250 | -9/Materials | Discovered new exit (range 9) 1333 | -9/Materials | Entered another Materials area 1333 | -8/Materials | Evolved 2 slots: Propulsion x1, Utility x1 1508 | -8/Materials | Garrison activated, responded to threat 1751 | -8/Materials | Identified exit to Garrison 1751 | -8/Materials | Entered Garrison 1906 | -8/Garrison | Triggered checkpoint 1980 | -8/Garrison | Lost 3 parts (1p2n) 2105 | -8/Garrison | Triggered checkpoint 2293 | -8/Garrison | Discovered new exit (range 15) 2521 | -8/Garrison | Triggered checkpoint 2565 | -8/Garrison | Discovered new exit (range 62) 2565 | -8/Garrison | Discovered new exit (range 39) 2565 | -8/Garrison | Discovered new exit (range 38) 2599 | -8/Garrison | Triggered checkpoint 2702 | -8/Garrison | Garrison Relay disabled 2730 | -8/Garrison | Garrison Relay disabled 2873 | -8/Garrison | Installed Relay Interface Framework 2942 | -8/Garrison | Entered Materials 2942 | -8/Materials | Accompanied by 1 ally 3056 | -8/Materials | Garrison activated, responded to threat 3235 | -8/Materials | Identified exit to Garrison 3268 | -8/Materials | Entered Garrison 3322 | -8/Garrison | Triggered checkpoint 3325 | -8/Garrison | Triggered checkpoint 3416 | -8/Garrison | Discovered new exit (range 8) 3459 | -8/Garrison | Core integrity fell below 50% 3539 | -8/Garrison | Build established: Scavenger-Mutant 3602 | -8/Garrison | Triggered checkpoint 3719 | -8/Garrison | Lost 11 parts (1p4n3u3w) 3724 | -8/Garrison | Core integrity fell below 20% 3742 | -8/Garrison | Destroyed by H-55 Commando with Assault Rifle Last Messages --------------- Triggered Stasis Trap. A bubble of rippling energy engulfs the area. Field strength at 93. L-31 Rogue destroyed. The unstable cave ceiling collapses. Mni. Grenade Launcher destroyed. Field strength at 78. Field strength at 71. Penetrated by Slug. Field strength at 59. The unstable cave ceiling collapses. Field strength at 52. Field strength at 36. Slug penetrates Wall. Field strength at 26. Med. Storage Unit destroyed. Field strength at 6. Stasis field depleted. Dropped Cmb. Airjet. Acquired Cmb. Airjet. Map ----- +----------------------------------------------------+ | ??????????????????????????????????????# #???????? | | ??????????????????????????????????????# #???????? | | ???????????????????????????############ ##??????? | | ???????????????????????????# T#??????? | | ???????????????????????????# ##??????? | | ???????????????????????????# ######### #???????? | | ?????????????????????????### #?? #???# #???????? | | ????????????????# ?????# # ### ##### #???????? | | ????????????????# ?????# # # ???????? | | ????????????????# ######## # ### ### ##??????? | | ????????????????# ## [ # # #????# ^#???????? | | ????????????????# # [## ###????# #???????? | | ??????????????### ####### #???????? | | ????????????# #???????? | | ??????????????### #???????? | | ???????????????## # # ##########???????? | | ???????????????## # ==###???????????????? | | ????????????????" #???????????????? | | ????????????????" #???????????????? | | ????????????????" ####????????????? | | ??????###???????" #????????????? | | ??????# ###??# ## # #### #????????????? | | ????### ### ## ## #??#????????????? | | ????# h ! #???????????????? | | ????### gg ^ = # #???????????????? | | ????## #### @ ###???????????????? | | ????# # ???## ## ## % ###???????????????? | | ????### #?#?????# ## # # #???????????????? | | ??????# #???????# ####### # ##???????????????? | | ??????# #???????# #???#=# ### ##???????????? | | ??????# #???????# #???# ???? | | ??????# #???????# #???#### #### #####????????? | | ####### ######### #?????## ##?????????????????? | | !! %" #??????# ########???????????? | | !%[ " #??????# ^ #???????????? | | #######=#############??????# ^ #######"????? | | ??????#=#??????????????????######"# | | ??????#[#???????????????????????### ##########??? | | ??????#!##????????????????????????# #???????????? | | ??????# =##+#?????????????????????# #???????????? | | ??????#[!=! #?????????????????????# #???????????? | | ??????##### #?????????????????????# ###?????????? | | ??????????# #?????????????????????# #?????????? | | ??????????# #?????????????????????# < #?????????? | | ??????????# #?????????????????????# #?????????? | | ??????????# ????????????????????######?????????? | | ??????????# #?????????????"?"??????????????????? | | ??????????# #?????????????"?"??????????????????? | | ??????????# ###?????????????"?"??????????????????? | | ??????????# #???????????????"""??????????????????? | +----------------------------------------------------+ Best States ------------- Heat Dissipation 31 Energy Generation 14 Energy Capacity 250 Matter Stores 400 Matter Capacity 400 Sight Range 18 Terrain Scan Density 10 Armor Coverage 300 Resistance: EX 25 Evasion (%) 55 Relay Coupler Types 1 Relay Coupler Value 22 Item Schematics ----------------- Machine Analyzer | -9/Materials | Scanalyzed Robot Schematics ------------------ None Fabricated ------------ Nothing Repaired ---------- Mni. Grenade Launcher | 8% | -9/Materials Studied --------- None Alien Tech Used ----------------- None Achievements -------------- Join The Dark Side Mindtrick Challenges ------------ None Game ------ Seed CompositeLightningFlamer Manual? 0 Play Time 01:15:12 Cumulative 24.3 hours Start 2026.02.05 @ 20:14:15 End 2026.02.07 @ 21:25:37 Sessions 6 Manual Loads 0 Difficulty Rogue Special Mode None Game No. 23 Rogue 23 Adventurer 0 Explorer 0 Win Type - Total 0 Types 0/0/0/0/0/0/0/0/0/0 Lore% 15 Gallery% 26 Achievement% 20 Wizard Run 0 Options --------- Layout 1 ASCII 0 Keyboard 0 Movement Mouse Keybinds 0 Fullscreen 1 Font 16/SmallcapsGlow Map View 55x38 Zoom Use 0% Tactical HUD 0 Map Filters NONE Filters NONE Steam 1 RUN: 7257bc5b-9359-4e1f-8af6-78ad60923970